bitfinex-derivatives/quotes_BNBF0:USTF0_20251225
["timestamp","ask_amount","ask_price","bid_price","bid_amount"]
[1766688511490,1.18799413,842.73,841.94,0.88547996]
[1766688511686,1.18799413,842.72,841.94,0.88547996]
[1766688511986,1.18799413,842.71,841.94,0.88547996]
[1766688512286,1.18799413,842.7,841.94,0.88547996]
[1766688512490,1.18799413,842.69,841.95,0.88547996]
[1766688512690,1.18799413,842.68,841.95,0.88547996]
[1766688512991,1.18799413,842.67,841.95,0.88547996]
[1766688513188,1.18799413,842.66,841.95,0.88547996]
[1766688513388,1.18799413,842.65,841.95,0.88547996]
[1766688513588,1.18799413,842.64,841.95,0.88547996]
[1766688513787,1.18799413,842.63,841.95,0.88547996]
[1766688513991,1.18799413,842.62,841.95,0.88547996]
[1766688514292,1.18799413,842.61,841.95,0.88547996]
[1766688514493,1.18799413,842.6,841.95,0.88547996]
[1766688514789,1.18799413,842.59,841.95,0.88547996]
[1766688514993,1.18799413,842.58,841.95,0.88547996]
[1766688515194,1.18799413,842.57,841.95,0.88547996]
[1766688515393,1.18799413,842.56,841.95,0.88547996]
[1766688515690,1.18799413,842.55,841.95,0.88547996]
[1766688515888,1.18799413,842.54,841.95,0.88547996]
[1766688516093,1.18799413,842.53,841.95,0.88547996]
[1766688516390,0.88697841,842.75,841.95,0.88547996]
[1766688516594,1.18799485,842.74,841.95,0.88547996]
[1766688516790,1.18799485,842.73,841.95,0.88547996]
[1766688516991,1.18799485,842.72,841.95,0.88547996]
[1766688517290,1.18799485,842.71,841.95,0.88547996]
[1766688517493,1.18799485,842.7,841.95,0.88547996]
[1766688517691,1.18799485,842.69,841.95,0.88547996]
[1766688517993,1.18799485,842.68,841.95,0.88547996]
[1766688518195,0.88697841,842.75,841.95,0.88547996]
[1766688518196,1.18799485,842.67,841.95,0.88547996]
[1766688518390,1.18799485,842.66,841.96,0.88547996]
[1766688518591,1.18799485,842.65,841.96,0.88547996]
[1766688518795,1.18799485,842.64,841.96,0.88547996]
[1766688519093,1.18799485,842.63,841.96,0.88547996]
[1766688519396,1.18799485,842.62,841.96,0.88547996]
[1766688519596,1.18799485,842.61,841.96,0.88547996]
[1766688519792,1.18799485,842.6,841.96,0.88547996]
[1766688519996,1.18799485,842.59,841.96,0.88547996]
[1766688520197,1.18799485,842.58,841.96,0.88547996]
[1766688520397,1.18799485,842.57,841.96,0.88547996]
[1766688520597,1.18799485,842.56,841.96,0.88547996]
[1766688520900,1.18799485,842.55,841.96,0.88547996]
[1766688521092,1.18799485,842.54,841.96,0.88547996]
[1766688521293,1.18799485,842.53,841.96,0.88547996]
[1766688521595,1.18799485,842.52,841.97,13.80187864]
[1766688521797,1.18799485,842.51,841.97,13.80187864]
[1766688521993,0.88994485,842.74,841.97,13.80187864]
[1766688522198,1.18799466,842.73,841.97,13.80187864]
[1766688522498,1.18799466,842.72,841.97,13.80187864]
[1766688522796,1.18799466,842.71,841.97,13.80187864]
[1766688522995,1.18799466,842.7,841.97,13.80187864]
[1766688523199,1.18799466,842.69,841.97,13.80187864]
[1766688523396,1.18799466,842.68,841.97,13.80187864]
[1766688523600,1.18799466,842.67,841.97,13.80187864]
[1766688523800,1.18799466,842.66,841.97,13.80187864]
[1766688524000,1.18799466,842.65,841.97,13.80187864]
[1766688524300,1.18799466,842.64,841.97,13.80187864]
[1766688524500,1.18799466,842.63,841.97,13.80187864]
[1766688524700,1.18799466,842.62,841.97,13.80187864]
[1766688524997,1.18799466,842.61,841.97,13.80187864]
[1766688525196,1.18799466,842.6,841.97,13.80187864]
[1766688525500,1.18799466,842.59,841.97,0.88835662]
[1766688525698,1.18799466,842.58,841.93,0.88835662]
[1766688525901,1.18799466,842.57,841.93,0.88835662]
[1766688526095,1.18799466,842.56,841.93,0.88835662]
[1766688526300,1.18799466,842.55,841.93,0.88835662]
[1766688526500,1.18799466,842.54,841.93,0.88835662]
[1766688526701,1.18799466,842.53,841.93,0.88835662]
[1766688526901,1.18799466,842.52,841.93,0.88835662]
[1766688527095,1.18799466,842.51,841.93,0.88835662]
[1766688527300,1.18799466,842.5,841.93,0.88835662]
[1766688527496,1.18799466,842.49,841.93,0.88835662]
[1766688527702,1.18799466,842.48,841.93,0.88835662]
[1766688527903,1.18799466,842.47,841.93,0.88835662]
[1766688528103,0.88994485,842.69,841.93,0.88835662]
[1766688528305,1.18805369,842.68,841.93,0.88835662]
[1766688528505,1.18805369,842.67,841.93,0.88835662]
[1766688528705,1.18805369,842.66,841.93,0.88835662]
[1766688529002,1.18805369,842.65,841.93,0.88835662]
[1766688529200,1.18805369,842.64,841.93,0.88835662]
[1766688529500,1.18805369,842.63,841.93,0.88835662]
[1766688529704,1.18805369,842.62,841.93,0.88835662]
[1766688529904,1.18805369,842.61,841.93,0.88835662]
[1766688530204,1.18805369,842.6,841.93,0.88835662]
[1766688530399,1.18805369,842.59,841.93,0.88835662]
[1766688530601,1.18805369,842.58,841.93,0.88835662]
[1766688530901,1.18805369,842.57,841.93,0.88835662]
[1766688531100,1.18805369,842.56,841.93,0.88835662]
[1766688531304,1.18805369,842.55,841.93,0.88835662]
[1766688531500,1.18805369,842.54,841.93,0.88835662]
[1766688531800,1.18805369,842.53,841.93,0.88835662]
[1766688532104,1.18805369,842.52,841.93,0.88835662]
[1766688532302,1.18805369,842.51,841.93,0.88835662]
[1766688532507,1.18805369,842.5,841.93,0.88835662]
[1766688532704,1.18805369,842.49,841.93,0.88835662]
[1766688532907,1.18805369,842.48,841.93,0.88835662]
[1766688533106,1.18805369,842.47,841.93,0.88835662]
[1766688533402,1.18805369,842.46,841.93,0.88835662]
[1766688533703,0.88994485,842.69,841.93,0.88835662]
[1766688534010,1.18805369,842.68,841.93,0.88835662]
[1766688534202,1.18805369,842.67,841.93,0.88835662]
[1766688534403,1.18805369,842.66,841.93,0.88835662]
[1766688534603,1.18805369,842.65,841.93,0.88835662]
[1766688534902,1.18805369,842.64,841.93,0.88835662]
[1766688535106,1.18805369,842.63,841.93,0.88835662]
[1766688535306,1.18805369,842.62,841.94,0.88835662]
[1766688535506,1.18805369,842.61,841.93,0.88835662]
[1766688535707,1.18805369,842.6,841.93,0.88835662]
[1766688535907,1.18805369,842.59,841.93,0.88835662]
[1766688536104,1.18805369,842.58,841.93,0.88835662]
[1766688536308,1.18805369,842.57,841.93,0.88835662]
[1766688536608,1.18805369,842.56,841.93,0.88835662]
[1766688536808,1.18805369,842.55,841.93,0.88835662]
[1766688537106,1.18805369,842.54,841.93,0.88835662]
[1766688537309,1.18805369,842.53,841.94,0.88835662]
[1766688537506,1.18805369,842.52,841.94,0.88835662]
[1766688537706,1.18805369,842.51,841.94,0.88835662]
[1766688537909,1.18805369,842.5,841.94,0.88835662]
[1766688538204,1.18805369,842.49,841.94,0.88835662]
[1766688538505,1.18805369,842.48,841.94,0.88835662]
[1766688538804,1.18805369,842.47,841.94,0.88835662]
[1766688539005,1.18805369,842.46,841.94,0.88835662]
[1766688539205,0.88994485,842.68,841.94,0.88835662]
[1766688539405,1.18805369,842.67,841.94,0.88835662]
[1766688539611,1.18805369,842.66,841.94,0.88835662]
[1766688539805,1.18805369,842.65,841.94,0.88835662]
[1766688540004,1.18805369,842.64,841.94,0.88835662]
[1766688540208,1.18805369,842.63,841.94,0.88835662]
[1766688540506,1.18805369,842.62,841.94,0.88835662]
[1766688540704,1.18805369,842.61,841.94,0.88835662]
[1766688540910,1.18805369,842.6,841.94,0.88835662]
[1766688541106,1.18805369,842.59,841.94,0.88835662]
[1766688541305,1.18805369,842.58,841.94,0.88835662]
[1766688541506,1.18805369,842.57,841.94,0.88835662]
[1766688541710,1.18805369,842.56,841.94,0.88835662]
[1766688542010,1.18805369,842.55,841.94,0.88835662]
[1766688542206,1.18805369,842.54,841.94,0.88835662]
[1766688542406,1.18805369,842.53,841.94,0.88835662]
[1766688542607,1.18805369,842.52,841.94,0.88835662]
[1766688542809,1.18805369,842.51,841.94,0.88835662]
[1766688543006,1.18805369,842.5,841.94,0.88835662]
[1766688543210,1.18805369,842.49,841.93,0.88835662]
[1766688543510,1.18805369,842.48,841.93,0.88835662]
[1766688543710,1.18805369,842.47,841.93,0.88835662]
[1766688543908,1.18805369,842.46,841.93,0.88835662]
[1766688544211,0.88994485,842.68,841.93,0.88835662]
[1766688544411,0.88994485,842.61,841.87,0.88835662]
[1766688544608,1.18805379,842.6,841.87,0.88835662]
[1766688545207,1.18805379,842.6,841.86,0.88835662]
[1766688545407,1.18805379,842.59,841.86,0.88835662]
[1766688545709,1.18805379,842.58,841.86,0.88835662]
[1766688545907,0.88994485,842.62,841.86,0.88835662]
[1766688546210,1.18814924,842.61,841.86,0.88835662]
[1766688546408,1.18814924,842.6,841.86,0.88835662]
[1766688546712,0.88994485,842.55,841.79,0.88835662]
[1766688547012,1.18814924,842.54,841.79,0.88835662]
[1766688547212,1.18814924,842.54,841.77,0.88835662]
[1766688547410,1.18814924,842.53,841.77,0.88835662]
[1766688547612,1.18814924,842.52,841.77,0.88835662]
[1766688547813,1.18814924,842.51,841.77,0.88835662]
[1766688548008,1.18814924,842.5,841.77,0.88835662]
[1766688548309,1.18814924,842.49,841.77,0.88835662]
[1766688548513,1.18814924,842.48,841.77,0.88835662]
[1766688548813,1.18814924,842.47,841.77,0.88835662]
[1766688549016,1.18814924,842.46,841.77,0.88835662]
[1766688549213,1.18814924,842.45,841.76,0.88835662]
[1766688549416,1.18814924,842.44,841.76,0.88835662]
[1766688549616,1.18814924,842.43,841.76,0.88835662]
[1766688549816,1.18814924,842.42,841.76,0.88835662]
[1766688550110,1.18814924,842.41,841.76,0.88835662]
[1766688550315,1.18814924,842.4,841.75,0.88835662]
[1766688550512,1.18814924,842.39,841.75,0.88835662]
[1766688550713,1.18814924,842.38,841.75,0.88835662]
[1766688551016,1.18814924,842.37,841.75,0.88835662]
[1766688551212,1.18814924,842.36,841.75,0.88835662]
[1766688551516,0.88994485,842.59,841.75,0.88835662]
[1766688551719,1.18825082,842.58,841.75,0.88835662]
[1766688551918,1.18825082,842.57,841.75,0.88835662]
[1766688552214,1.18825082,842.56,841.74,0.88835662]
[1766688552518,1.18825082,842.55,841.74,0.88835662]
[1766688552717,1.18825082,842.54,841.74,0.88835662]
[1766688552918,1.18825082,842.53,841.74,0.88835662]
[1766688553218,1.18825082,842.52,841.74,0.88835662]
[1766688553419,1.18825082,842.51,841.74,0.88835662]
[1766688553617,1.18825082,842.5,841.74,0.88835662]
[1766688553816,1.18825082,842.49,841.74,0.88835662]
[1766688554018,1.18825082,842.48,841.74,0.88835662]
[1766688554218,1.18825082,842.47,841.74,0.88835662]
[1766688554417,0.88994485,842.6,841.74,0.88835662]
[1766688554418,1.18825082,842.46,841.74,0.88835662]
[1766688554620,1.18825082,842.45,841.74,0.88835662]
[1766688554819,1.18825082,842.44,841.74,0.88835662]
[1766688555119,1.18825082,842.43,841.74,0.88835662]
[1766688555316,1.18825082,842.42,841.74,0.88835662]
[1766688555519,1.18825082,842.41,841.74,0.88835662]
[1766688555722,1.18825082,842.4,841.74,0.88835662]
[1766688555921,1.18825082,842.39,841.74,0.88835662]
[1766688556121,1.18825082,842.38,841.73,0.88835662]
[1766688556422,0.88994485,842.6,841.73,0.88835662]
[1766688556622,1.18825033,842.59,841.73,0.88835662]
[1766688556820,1.18825033,842.58,841.73,0.88835662]
[1766688557120,1.18825033,842.57,841.73,0.88835662]
[1766688557424,1.18825033,842.56,841.73,0.88835662]
[1766688557623,1.18825033,842.55,841.73,0.88835662]
[1766688557824,1.18825033,842.54,841.73,0.88835662]
[1766688558124,1.18825033,842.53,841.73,0.88835662]
[1766688558324,1.18825033,842.52,841.73,0.88835662]
[1766688558525,1.18825033,842.51,841.73,0.88835662]
[1766688558821,1.18825033,842.5,841.73,0.88835662]
[1766688559024,1.18825033,842.49,841.73,0.88835662]
[1766688559320,1.18825033,842.48,841.73,0.88835662]
[1766688559520,1.18825033,842.47,841.73,0.88835662]
[1766688559821,1.18825033,842.46,841.73,0.88835662]
[1766688560020,1.18825033,842.45,841.73,0.88835662]
[1766688560225,1.18825033,842.44,841.73,0.88835662]
[1766688560523,1.18825033,842.43,841.73,0.88835662]
[1766688560824,1.18825033,842.42,841.73,0.88835662]
[1766688561124,1.18825033,842.41,841.73,0.88835662]
[1766688561322,1.18825033,842.4,841.73,0.88835662]
[1766688561523,1.18825033,842.39,841.73,0.88835662]
[1766688561722,0.88994485,842.61,841.73,0.88835662]
[1766688561923,1.18825046,842.6,841.73,0.88835662]
[1766688562225,0.88994485,842.61,841.73,0.88835662]
[1766688562226,1.18825046,842.59,841.73,0.88835662]
[1766688562425,1.18825046,842.58,841.73,0.88835662]
[1766688562725,1.18825046,842.57,841.73,0.88835662]
[1766688563019,1.18825046,842.56,841.73,0.88835662]
[1766688563224,1.18825046,842.55,841.73,0.88835662]
[1766688563425,1.18825046,842.54,841.73,0.88835662]
[1766688563621,1.18825046,842.53,841.73,0.88835662]
[1766688563825,1.18825046,842.52,841.73,0.88835662]
[1766688564023,1.18825046,842.51,841.73,0.88835662]
[1766688564226,1.18825046,842.5,841.73,0.88835662]
[1766688564427,1.18825046,842.49,841.73,0.88835662]
[1766688564626,1.18825046,842.48,841.73,0.88835662]
[1766688564825,1.18825046,842.47,841.73,0.88835662]
[1766688565025,1.18825046,842.46,841.73,0.88835662]
[1766688565223,1.18825046,842.45,841.73,0.88835662]
[1766688565428,1.18825046,842.44,841.73,0.88835662]
[1766688565626,1.18825046,842.43,841.73,0.88835662]
[1766688565926,1.18825046,842.42,841.73,0.88835662]
[1766688566129,1.18825046,842.41,841.73,0.88835662]
[1766688566331,1.18825046,842.4,841.73,0.88835662]
[1766688566626,1.18825046,842.39,841.73,0.88835662]
[1766688566830,1.18825046,842.38,841.73,0.88835662]
[1766688567127,0.88994485,842.6,841.73,0.88835662]
[1766688567431,1.18825114,842.59,841.73,0.88835662]
[1766688567626,1.18825114,842.58,841.73,0.88835662]
[1766688567827,1.18825114,842.57,841.73,0.88835662]
[1766688568030,1.18825114,842.56,841.73,0.88835662]
[1766688568229,1.18825114,842.55,841.73,0.88835662]
[1766688568427,1.18825114,842.54,841.73,0.88835662]
[1766688568633,1.18825114,842.53,841.73,0.88835662]
[1766688568829,1.18825114,842.52,841.73,0.88835662]
[1766688569028,1.18825114,842.51,841.73,0.88835662]
[1766688569230,1.18825114,842.5,841.73,0.88835662]
[1766688569431,1.18825114,842.49,841.73,0.88835662]
[1766688569736,1.18825114,842.48,841.73,0.88835662]
[1766688569935,1.18825114,842.47,841.73,0.88835662]
[1766688570134,1.18825114,842.46,841.73,0.88835662]
[1766688570432,1.18825114,842.45,841.73,0.88835662]
[1766688570635,0.88994485,842.6,841.73,0.88835662]
[1766688570636,1.18825114,842.44,841.73,0.88835662]
[1766688570832,1.18825114,842.43,841.73,0.88835662]
[1766688571036,1.18825114,842.42,841.73,0.88835662]
[1766688571240,1.18825114,842.41,841.73,0.88835662]
[1766688571533,1.18825114,842.4,841.73,0.88835662]
[1766688571833,1.18825114,842.39,841.73,0.88835662]
[1766688572032,1.18825114,842.38,841.73,0.88835662]
[1766688572232,1.18825114,842.37,841.73,0.88835662]
[1766688572438,0.88994485,842.6,841.73,0.88835662]
[1766688572733,1.18825114,842.59,841.73,0.88835662]
[1766688572937,1.18825114,842.58,841.75,0.88835662]
[1766688573135,0.88994485,842.61,841.75,0.88835662]
[1766688573136,1.18825114,842.57,841.75,0.88835662]
[1766688573334,1.18825114,842.56,841.75,0.88835662]
[1766688573534,1.18825114,842.55,841.75,0.88835662]
[1766688573733,1.18825114,842.54,841.75,0.88835662]
[1766688573935,1.18825114,842.53,841.75,0.88835662]
[1766688574134,1.18825114,842.52,841.75,0.88835662]
[1766688574336,1.18825114,842.51,841.75,0.88835662]
[1766688574536,1.18825114,842.5,841.75,0.88835662]
[1766688574736,1.18825114,842.49,841.75,0.88835662]
[1766688574939,1.18825114,842.48,841.74,0.88835662]
[1766688575140,1.18825114,842.47,841.74,0.88835662]
[1766688575339,1.18825114,842.46,841.74,0.88835662]
[1766688575636,1.18825114,842.45,841.74,0.88835662]
[1766688575940,0.88994485,842.59,841.74,0.88835662]
[1766688576136,1.18825134,842.58,841.74,0.88835662]
[1766688576340,1.18825134,842.57,841.74,0.88835662]
[1766688576538,1.18825134,842.56,841.74,0.88835662]
[1766688576743,1.18825134,842.55,841.74,0.88835662]
[1766688576938,1.18825134,842.54,841.74,0.88835662]
[1766688577138,1.18825134,842.53,841.74,0.88835662]
[1766688577339,1.18825134,842.52,841.74,0.88835662]
[1766688577538,1.18825134,842.51,841.74,0.88835662]
[1766688577742,1.18825134,842.5,841.74,0.88835662]
[1766688577942,1.18825134,842.49,841.74,0.88835662]
[1766688578238,1.18825134,842.48,841.75,0.88835662]
[1766688578538,1.18825134,842.47,841.75,0.88835662]
[1766688578742,1.18825134,842.46,841.75,0.88835662]
[1766688579039,1.18825134,842.45,841.75,0.88835662]
[1766688579242,1.18825134,842.44,841.75,13.93909843]
[1766688579442,1.18825134,842.43,841.75,13.93909843]
[1766688579642,1.18825134,842.42,841.75,13.93909843]
[1766688579840,1.18825134,842.41,841.75,13.93909843]
[1766688580044,1.18825134,842.4,841.75,13.93909843]
[1766688580241,1.18825134,842.39,841.75,13.93909843]
[1766688580440,1.18825134,842.38,841.75,13.93909843]
[1766688580742,1.18825134,842.37,841.75,13.93909843]
[1766688580941,1.18825134,842.36,841.75,13.93909843]
[1766688581244,1.18825201,842.35,841.75,13.93909843]
[1766688581444,0.88994485,842.58,841.75,13.93909843]
[1766688581644,1.18825201,842.57,841.75,13.93909843]
[1766688581843,1.18825201,842.56,841.75,13.93909843]
[1766688582042,1.18825201,842.55,841.75,13.93909843]
[1766688582243,1.18825201,842.54,841.76,0.88835662]
[1766688582443,1.18825201,842.53,841.76,0.88835662]
[1766688582646,1.18825201,842.52,841.76,0.88835662]
[1766688582844,1.18825201,842.51,841.76,0.88835662]
[1766688583045,1.18825201,842.5,841.76,0.88835662]
[1766688583345,1.18825201,842.49,841.76,0.88835662]
[1766688583547,1.18825201,842.48,841.76,0.88835662]
[1766688583746,1.18825201,842.47,841.76,0.88835662]
[1766688583945,1.18825201,842.46,841.76,0.88835662]
[1766688584149,1.18825201,842.45,841.76,0.88835662]
[1766688584344,1.18825201,842.44,841.77,0.88835662]
[1766688584547,1.18825201,842.43,841.77,0.88835662]
[1766688584745,1.18825201,842.42,841.77,0.88835662]
[1766688584952,1.18825201,842.41,841.77,0.88835662]
[1766688585146,1.18825201,842.4,841.77,0.88835662]
[1766688585350,1.18825201,842.39,841.77,0.88835662]
[1766688585551,1.18825201,842.38,841.77,0.88835662]
[1766688585752,1.18825201,842.37,841.77,0.88835662]
[1766688585952,1.18825201,842.36,841.77,0.88835662]
[1766688586150,1.18825201,842.35,841.77,0.88835662]
[1766688586450,1.18825201,842.34,841.77,0.88835662]
[1766688586652,0.88994485,842.56,841.77,0.88835662]
[1766688586852,1.18825201,842.55,841.77,0.88835662]
[1766688587152,1.18825201,842.55,841.62,1.18014915]
[1766688587153,1.18825201,842.54,841.78,0.88835662]
[1766688587450,1.18825201,842.53,841.78,0.88835662]
[1766688587652,1.18825201,842.52,841.78,0.88835662]
[1766688587852,1.18825201,842.51,841.78,0.88835662]
[1766688588047,1.18825201,842.5,841.78,0.88835662]
[1766688588250,1.18825201,842.49,841.79,0.88835662]
[1766688588453,1.18825201,842.48,841.79,0.88835662]
[1766688588650,1.18825201,842.47,841.79,0.88835662]
[1766688588953,1.18825201,842.46,841.79,0.88835662]
[1766688589153,1.18825201,842.45,841.79,0.88835662]
[1766688589354,1.18825201,842.44,841.8,0.88835662]
[1766688589554,1.18825201,842.43,841.8,0.88835662]
[1766688589751,1.18825201,842.42,841.8,0.88835662]
[1766688589957,1.18825201,842.41,841.8,0.88835662]
[1766688590258,1.18825201,842.4,841.81,0.88835662]
[1766688590452,1.18825201,842.39,841.81,0.88835662]
[1766688590652,1.18825201,842.38,841.81,0.88835662]
[1766688590856,1.18825201,842.37,841.81,0.88835662]
[1766688591053,1.18825201,842.36,841.81,0.88835662]
[1766688591257,1.18825201,842.35,841.82,0.88835662]
[1766688591458,1.18825201,842.34,841.82,0.88835662]
[1766688591656,1.18825201,842.33,841.82,0.88835662]
[1766688591856,1.18825201,842.32,841.82,0.88835662]
[1766688592056,1.18825201,842.31,841.82,0.88835662]
[1766688592355,1.18825201,842.3,841.82,0.88835662]
[1766688592562,1.18825201,842.29,841.82,0.88835662]
[1766688592759,0.88994485,842.52,841.82,0.88835662]
[1766688592958,1.18825163,842.51,841.82,0.88835662]
[1766688593160,1.18825163,842.5,841.81,0.88835662]
[1766688593362,1.18825163,842.49,841.81,0.88835662]
[1766688593558,1.18825163,842.48,841.81,0.88835662]
[1766688593762,1.18825163,842.47,841.81,0.88835662]
[1766688593960,1.18825163,842.46,841.81,0.88835662]
[1766688594163,1.18825163,842.45,841.81,0.88835662]
[1766688594364,1.18825163,842.44,841.81,0.88835662]
[1766688594564,1.18825163,842.43,841.81,0.88835662]
[1766688594864,1.18825163,842.42,841.81,0.88835662]
[1766688595160,1.18825163,842.41,841.81,0.88835662]
[1766688595365,1.18825163,842.4,841.81,0.88835662]
[1766688595566,1.18825163,842.39,841.81,0.88835662]
[1766688595764,1.18825163,842.38,841.81,0.88835662]
[1766688595964,1.18825163,842.37,841.81,0.88835662]
[1766688596163,1.18825163,842.36,841.81,0.88835662]
[1766688596363,1.18825163,842.35,841.81,0.88835662]
[1766688596563,1.18825163,842.34,841.81,0.88835662]
[1766688596861,1.18825163,842.33,841.81,0.88835662]
[1766688597065,1.18825163,842.32,841.81,0.88835662]
[1766688597264,1.18825163,842.31,841.81,0.88835662]
[1766688597567,1.18825163,842.3,841.81,0.88835662]
[1766688597766,1.18825163,842.29,841.81,0.88835662]
[1766688598067,0.88994485,842.52,841.81,0.88835662]
[1766688598263,1.18825173,842.51,841.81,0.88835662]
[1766688598468,1.18825173,842.5,841.81,0.88835662]
[1766688598768,0.88994485,842.52,841.81,0.88835662]
[1766688598769,1.18825173,842.49,841.81,0.88835662]
[1766688598969,1.18825173,842.48,841.81,0.88835662]
[1766688599167,1.18825173,842.47,841.81,0.88835662]
[1766688599367,1.18825173,842.46,841.81,0.88835662]
[1766688599571,1.18825173,842.45,841.81,0.88835662]
[1766688599766,1.18825173,842.44,841.81,0.88835662]
[1766688599970,1.18825173,842.43,841.81,0.88835662]
[1766688600167,1.18825173,842.42,841.81,0.88835662]
[1766688600371,0.88994485,842.52,841.81,0.88835662]
[1766688600372,1.18825173,842.41,841.81,0.88835662]
[1766688600572,1.18825173,842.4,841.81,0.88835662]
[1766688600771,1.18825173,842.39,841.81,0.88835662]
[1766688601072,1.18825173,842.38,841.8,0.88835662]
[1766688601272,1.18825173,842.37,841.8,0.88835662]
[1766688601566,1.18825173,842.36,841.8,0.88835662]
[1766688601767,1.18825173,842.35,841.8,0.88835662]
[1766688601972,1.18825173,842.34,841.8,0.88835662]
[1766688602169,1.18825173,842.33,841.8,0.88835662]
[1766688602372,1.18825173,842.32,841.8,0.88835662]
[1766688602570,1.18825173,842.31,841.8,0.88835662]
[1766688602774,1.18825173,842.3,841.8,0.88835662]
[1766688603074,1.18825173,842.29,841.75,0.88835662]
[1766688603273,1.18825173,842.28,841.74,0.88835662]
[1766688603476,1.18825173,842.27,841.74,0.88835662]
[1766688603669,1.18825173,842.26,841.74,0.88835662]
[1766688603973,1.18825173,842.25,841.74,0.88835662]
[1766688604273,1.18825173,842.24,841.74,0.88835662]
[1766688604470,0.88994485,842.47,841.74,0.88835662]
[1766688604770,1.18834109,842.46,841.74,0.88835662]
[1766688604973,1.18834109,842.45,841.74,0.88835662]
[1766688605276,1.18834109,842.44,841.73,0.88835662]
[1766688605476,1.18834109,842.43,841.73,0.88835662]
[1766688605671,1.18834109,842.42,841.73,0.88835662]
[1766688605971,1.18834109,842.41,841.73,0.88835662]
[1766688606171,1.18834109,842.4,841.73,0.88835662]
[1766688606372,1.18834109,842.39,841.73,0.88835662]
[1766688606576,1.18834109,842.38,841.73,0.88835662]
[1766688606878,1.18834109,842.37,841.73,0.88835662]
[1766688607172,1.18834109,842.36,841.73,0.88835662]
[1766688607377,1.18834109,842.35,841.73,0.88835662]
[1766688607573,1.18834109,842.34,841.73,0.88835662]
[1766688607772,1.18834109,842.33,841.73,0.88835662]
[1766688607976,1.18834109,842.32,841.73,0.88835662]
[1766688608174,1.18834109,842.31,841.73,0.88835662]
[1766688608472,1.18834109,842.3,841.73,0.88835662]
[1766688608775,1.18834109,842.29,841.73,0.88835662]
[1766688609073,1.18834109,842.28,841.73,0.88835662]
[1766688609276,1.18834109,842.27,841.73,0.88835662]
[1766688609476,1.18834109,842.26,841.73,0.88835662]
[1766688609679,0.88994485,842.48,841.73,0.88835662]
[1766688609977,1.18834099,842.47,841.73,0.88835662]
[1766688610274,1.18834099,842.46,841.72,0.88835662]
[1766688610476,1.18834099,842.45,841.72,0.88835662]
[1766688610674,1.18834099,842.44,841.72,0.88835662]
[1766688610974,1.18834099,842.43,841.72,0.88835662]
[1766688611277,1.18834099,842.42,841.72,0.88835662]
[1766688611478,1.18834099,842.41,841.72,0.88835662]
[1766688611777,1.18834099,842.4,841.72,0.88835662]
[1766688611974,1.18834099,842.39,841.72,0.88835662]
[1766688612173,1.18834099,842.38,841.72,0.88835662]
[1766688612377,1.18834099,842.37,841.72,0.88835662]
[1766688612578,1.18834099,842.36,841.72,0.88835662]
[1766688612775,1.18834099,842.35,841.72,0.88835662]
[1766688613078,1.18834099,842.34,841.72,0.88835662]
[1766688613278,1.18834099,842.33,841.72,0.88835662]
[1766688613478,1.18834099,842.32,841.72,0.88835662]
[1766688613678,1.18834099,842.31,841.72,0.88835662]
[1766688613974,1.18834099,842.3,841.72,0.88835662]
[1766688614178,1.18834099,842.29,841.72,0.88835662]
[1766688614378,1.18834099,842.28,841.72,0.88835662]
[1766688614678,1.18834099,842.27,841.72,0.88835662]
[1766688614879,1.18834099,842.26,841.72,0.88835662]
[1766688615079,0.88994485,842.49,841.72,0.88835662]
[1766688615277,1.18834099,842.48,841.72,0.88835662]
[1766688615481,1.18834099,842.47,841.72,0.88835662]
[1766688615681,1.18834099,842.46,841.72,0.88835662]
[1766688615878,1.18834099,842.45,841.72,0.88835662]
[1766688616078,1.18834099,842.44,841.72,0.88835662]
[1766688616280,1.18834099,842.43,841.72,0.88835662]
[1766688616477,1.18834099,842.42,841.72,0.88835662]
[1766688616782,1.18834099,842.42,841.57,1.18014915]
[1766688616783,1.18834099,842.41,841.75,0.88835662]
[1766688616978,1.18834099,842.4,841.75,0.88835662]
[1766688617178,1.18834099,842.39,841.75,0.88835662]
[1766688617379,1.18834099,842.38,841.75,0.88835662]
[1766688617583,1.18834099,842.37,841.75,0.88835662]
[1766688617783,1.18834099,842.36,841.75,0.88835662]
[1766688617983,1.18834099,842.35,841.75,0.88835662]
[1766688618183,1.18834099,842.34,841.75,0.88835662]
[1766688618480,1.18834099,842.33,841.75,0.88835662]
[1766688618683,1.18834099,842.32,841.75,0.88835662]
[1766688618984,1.18834099,842.31,841.75,0.88835662]
[1766688619179,1.18834099,842.3,841.75,0.88835662]
[1766688619384,0.88994485,842.52,841.75,0.88835662]
[1766688619584,1.1882945,842.51,841.75,0.88835662]
[1766688619784,1.1882945,842.5,841.75,0.88835662]
[1766688619983,1.1882945,842.49,841.75,0.88835662]
[1766688620179,1.1882945,842.48,841.76,0.88835662]
[1766688620382,1.1882945,842.47,841.76,13.66010986]
[1766688620581,1.1882945,842.46,841.76,13.66010986]
[1766688620883,1.1882945,842.45,841.76,13.66010986]
[1766688621179,1.1882945,842.44,841.76,13.66010986]
[1766688621381,1.1882945,842.43,841.76,13.66010986]
[1766688621580,1.1882945,842.42,841.76,13.66010986]
[1766688621885,1.1882945,842.41,841.76,13.66010986]